Workbook

Sheet MATRIZ DE INDICADORES
D2: MACROPROCESO ESTRATÉGICO | S2: CÓDIGO: ESGr027
D3: PROCESO GESTIÓN SISTEMAS INTEGRADOS - CALIDAD | S3: VERSIÓN: 8
D4: MATRIZ DE MEDICIÓN Y SEGUIMIENTO A LOS PROCESOS DE GESTIÓN | S4: VIGENCIA: 2023-07-28
S5: PÁGINA: 1 de 6
Q7: FECHA DE ACTUALIZACIÓN: | S7: AÑO | T7: MES | U7: DÍA
S8: 2023 | T8: 6 | U8: 22
B10: ALINEACIÓN DE LOS INDICADORES CON LOS DOCUMENTOS ESTRATÉGICOS Y LOS OBJETIVOS DE CALIDAD
B12: PROCESO GESTIÓN | C12: FRENTES DEL PLAN ESTRATÉGICO | D12: LINEAMIENTOS DE LA POLÍTICA DE CALIDAD | E12: OBJETIVOS DE CALIDAD | F12: OBJETIVO GENERAL DEL PROCESO | G12: OBJETIVOS ESPECÍFICOS | H12: NOMBRE INDICADOR | I12: FÓRMULA | J12: TIPO DE INDICADOR | K12: SEGUIMIENTO MEDICIÓN | L12: META | M12: ACTIVIDAD | N12: RESPONSABLE DE LA ACTIVIDAD | O12: ¿QUÉ RECURSOS SE REQUIEREN? | P12: FECHA EJECUCIÓN DE ACTIVIDADES | Q12: EVIDENCIA | R12: ¿CUÁNDO FINALIZARÁ? | S12: RESULTADO | T12: NIVEL OBTENIDO | U12: ACCESO
B13: Institucional | C13: Frente Estratégico VI: Gobierno Universitario Digital | D13: Se legitima como una organización social del conocimiento y el aprendizaje que se compromete con el pensamiento basado en riesgos y el mejoramiento continuo mediante buenas prácticas administrativas y académicas en búsqueda de la acreditación de programas y la acreditación institucional, enfocándose en el bienestar de la comunidad universitaria como factor constitutivo de la vida y la libertad y la consolidación de una organización universitaria inteligente con alma y corazón. | E13: Mejorar continuamente el desempeño de los procesos a través de la implementación de buenas prácticas institucionales y de la aplicación de los mecanismos dispuestos por la Universidad de Cundinamarca, para la constitución de una organización universitaria inteligente con alma y corazón. | F13: Gestionar y administrar la arquitectura, la operación, el soporte y la seguridad de los Recursos y servicios Informáticos apoyando la implementación del Sistema de Gestión de Seguridad de la Información – SGSI y la Ley de protección de Datos, mediante la generación de políticas, buenas prácticas y proyectos de inversión tecnológica orientadas a la comunidad educativa en concordancia con las directrices institucionales. | G13: Dinamizar la sistematización de procesos, mediante la implementación del 80% de las solicitudes en uso y apropiación de los sistemas de información para la vigencia 2023. | H13: Uso y apropiación de los sistemas de información | I13: Número de soluciones en uso * 100 / Total de soluciones habilitadas | J13: EFICIENCIA | K13: SEMESTRAL | L13: 0.8 | M13: Soporte a usuarios finales de los Sistemas de Información Institucionales para guiar en el buen manejo y aprovechamiento de los mismos | N13: Area uso y apropiación de sistemas de información | O13: Plataforma Institucional | P13: 2023-12-15 | Q13: Inventario de sistemas de información | R13: 2023 | S13: 0.81 | T13: Excelente | U13: INS-5
M14: Verificar de que modulos se recibe soporte | O14: Plataforma Institucional | P14: 2023-12-16 | Q14: Inventario de sistemas de información
M15: Verificar si los modulos que no requieren soporte, tienen informacion registrada | O15: Plataforma Institucional | P15: 2023-12-17 | Q15: Inventario de sistemas de información
M16: Actualizar el estado de los modulos en el inventario de Sistemas de Información | O16: Plataforma Institucional | P16: 2023-12-18 | Q16: Inventario de sistemas de información
B17: Sistemas y Tecnología | G17: Asegurar el correcto funcionamiento de los recursos tecnológicos y conectividad a través de la ejecución del 70% del cronograma de mantenimientos preventivos en la vigencia 2023. | H17: Ejecución de mantenimientos preventivos a recursos informáticos de custodia de la Dirección de Sistemas y Tecnología | I17: Número de actividades ejecutadas * 100 / Total de actividades planeadas | J17: EFICIENCIA | K17: TRIMESTRAL | L17: 0.7 | M17: Realizar cronogramas de mantenimientos a equipos de computo administrativos con periodicidad semestral. Para Sedes, Seccionales y Extensiones. | N17: Area de Servicios Tecnologicos | O17: Recursos Humanos | P17: 2023-12-18 | Q17: Formato EPIr001- Cronograma de Mantenimientos Preventivos a Equipos de Computo | R17: 2023 | S17: 0.84 | T17: Excelente | U17: ASI-2
M18: Realizar la solicitud a la Oficina de Comunicaciones de la publicacion de los cronogramas en la Intranet. | O18: Recursos Humanos | Q18: Correo institucional
M19: Se envia correo a cada una de las Direcciones u Oficinas informado cuando se realizara dicho mantenimmiento. | O19: Recursos Humanos | Q19: Correo institucional
M20: Realizar el mantenimiento preventivo a los equipos tecnologicos | O20: Elementos Tecnológicos Recursos Humanos Plataforma Institucional / Bienes y Servicios | Q20: Formato Lista de Verificación Hoja de Vida Activos
H21: Ejecución de mantenimientos preventivos a cuartos de telecomunicaciones (TR's) y centros de datos (CD's) de la sede Fusagasugá en custodia de la Dirección de Sistemas y Tecnología | I21: Número de actividades ejecutadas * 100 / Total de actividades planeadas | J21: EFICIENCIA | K21: TRIMESTRAL | L21: 0.7 | M21: Realizar cronogramas de mantenimientos preventivos a los cuartos de telecomunicaciones (TR's) y centros de datos (CD's) en la sede, seccionales y extensiones con periodicidad semestral. | N21: Area de Servicios Tecnologicos | O21: Recursos Humanos | P21: 2023-12-18 | Q21: Formato EPIr001- Cronograma de Mantenimientos Preventivos a TR´S Y CD´S | R21: 2023 | S21: 0.96 | T21: Excelente | U21: ASI-3
M22: Realizar el mantenimiento preventivo a los Switch | O22: Recursos Humanos Infrestructura Tecnológica | Q22: Formato Lista de Verificación Hoja de Vida Activos
M23: Realizar Backup de la configuración de los Switch | O23: Recursos Humanos Infrestructura Tecnológica | Q23: Formato Lista de Verificación Hoja de Vida Activos
G24: Asegurar la atención oportuna del 75% de las solicitudes registradas en los servicios de TI, a través de la mesa de servicios a un clic en la vigencia 2023. | H24: Efectividad del servicio - Mesa de servicios a un Clic | I24: Número de solicitudes* 100/Total de solicitudes gestionadas en 10 días hábiles | J24: EFICIENCIA | K24: SEMESTRAL | L24: 0.75 | M24: Atender el mayor número de solicitudes posibles en los tiempos establecidos para cada servicio que ofrece la Dirección de Sistemas y Tecnología | N24: Dirección de Sistemas y Tecnología | O24: Plataforma Institucional | P24: 2023-12-18 | Q24: Solicitudes mesa de servicios | R24: 2023 | S24: 0.79 | T24: Excelente | U24: ASI-4
M25: Ejecutar el reporte de solicitudes
M26: Realizar validación de información de las categorias involucradas
M27: Realizar el filtro con la informacion necesaria de los estados: atendida / finalizada, dentro de los tiempos de respuesta establecidos: desde el dia 0 al dia 10, contando unicamente los dias laborales
B37: Diagonal 18 No. 20-29 Fusagasugá – Cundinamarca Teléfono (601) 8281483 Línea Gratuita 018000180414 www.ucundinamarca.edu.co E-mail: info@ucundinamarca.edu.co NIT: 890.680.062-2
B38: Documento controlado por el Sistema de Gestión de la Calidad Asegúrese que corresponde a la última versión consultando el Portal Institucional
C47: LINEAMIENTOS DE LA POLÍTICA DE CALIDAD | D47: OBJETIVOS DE CALIDAD | E47: ALINEACIÓN DE LOS INDICADORES CON LOS DOCUMENTOS ESTRATÉGICOS Y LOS OBJETIVOS DE CALIDAD
C48: LINEAMIENTOS DE LA POLÍTICA DE SEGURIDAD Y SALUD EN EL TRABAJO | D48: OBJETIVOS DE SEGURIDAD Y SALUD EN EL TRABAJO | E48: ALINEACIÓN DE LOS INDICADORES CON LOS DOCUMENTOS ESTRATÉGICOS Y LOS OBJETIVOS DE SEGURIDAD Y SALUD EN EL TRABAJO
C49: LINEAMIENTOS DE LA POLÍTICA DE AMBIENTAL | D49: OBJETIVOS DE AMBIENTAL | E49: ALINEACIÓN DE LOS INDICADORES CON LOS DOCUMENTOS ESTRATÉGICOS Y LOS OBJETIVOS DE AMBIENTAL
C50: LINEAMIENTOS DE LA POLÍTICA DE SEGURIDAD DE LA INFORMACIÓN | D50: OBJETIVOS DE SEGURIDAD DE LA INFORMACIÓN | E50: ALINEACIÓN DE LOS INDICADORES CON LOS DOCUMENTOS ESTRATÉGICOS Y LOS OBJETIVOS DE SEGURIDAD DE LA INFORMACIÓN
C51: LINEAMIENTOS DE LA POLÍTICA DE SEGURIDAD DE ANTISOBORNO | D51: OBJETIVOS DE SEGURIDAD DE ANTISOBORNO | E51: ALINEACIÓN DE LOS INDICADORES CON LOS DOCUMENTOS ESTRATÉGICOS Y LOS OBJETIVOS DE SEGURIDAD DE ANTISOBORNO
C52: LINEAMIENTOS DE LA POLÍTICA DE LA CONCILIACIÓN DE LA VIDA PERSONAL, FAMILIAR Y LABORAL | D52: OBJETIVOS DE LA CONCILIACIÓN DE LA VIDA PERSONAL, FAMILIAR Y LABORAL | E52: ALINEACIÓN DE LOS INDICADORES CON LOS DOCUMENTOS ESTRATÉGICOS Y LOS OBJETIVOS DE LA CONCILIACIÓN DE LA VIDA PERSONAL, FAMILIAR Y LABORAL

Sheet INS-5
B2: REGRESAR
E5: MACROPROCESO ESTRATÉGICO | M5: CÓDIGO: ESGr027
E6: PROCESO GESTIÓN SISTEMAS INTEGRADOS - CALIDAD | M6: VERSIÓN: 8
E7: MATRIZ DE MEDICIÓN Y SEGUIMIENTO A LOS PROCESOS DE GESTIÓN | M7: VIGENCIA: 2023-07-28
M8: PÁGINA: 2 de 6
C10: FICHA DE INDICADOR
C12: MACROPROCESO | E12: Apoyo | I12: NOMBRE DEL INDICADOR | K12: Uso y Apropiación de los Sistemas de Información
C13: PROCESO GESTIÓN | E13: Sistemas y Tecnología
C14: RESPONSABLE DE MEDICIÓN | E14: Dirección de Sistemas y Tecnología
C16: 1. COMPORTAMIENTO DE INDICADOR
C17: CLASIFICACIÓN DE LA MEDICIÓN | E17: 1 | H17: TIPO DE INDICADOR | J17: Eficiencia | L17: META | N17: 0.8
C18: FORMULA | E18: NUMERADOR | G18: Número de soluciones en uso * 100 | L18: UNIDAD DE MEDIDA | N18: Porcentual
E19: DENOMINADOR | G19: Total de soluciones habilitadas
C20: TENDENCIA | E20: Positiva | H20: NIVEL DE SEGREGACIÓN * | J20: No Aplica | L20: ESCALA
L21: Deficiente | M21: Aceptable | N21: Bueno | O21: Excelente
L22: 0% - 55,9% | M22: 56% - 69,9% | N22: 70% - 79,9% | O22: 80% - 100%
C23: ORIGEN DE DATOS NUMERADOR | E23: Base de datos en excel | H23: FRECUENCIA DE LA MEDICIÓN | J23: SEMESTRAL | L23: FRECUENCIA DE RESULTADO | N23: SEMESTRAL
C24: ORIGEN DE DATOS DENOMINADOR | E24: Catálogo del sistemas de información
C26: RESULTADOS
J27: ANÁLISIS DE DATOS
J28: En el transcurso del primer semestre del año 2023 y años anteriores, la Dirección de Sistemas y Tecnología ha realizado la entrega de 99 productos tecnológicos, entre los cuales se encuentran sistemas de información, módulos y/o funcionalidades. Los sistemas de información entregados son nuevos o actualizaciones desarrolladas por el área de Desarrollo de Sistemas de información por medio del proceso de desarrollos a la medida, dichas entregas se evidencian en respuesta a solicitud en mesa de servicios a un clic. Para el segundo semestre del 2023, se evidencia que de los 99 productos entregados, se esta haciendo uso y apropiación de 80 sistemas de información, 19 productos no estan siendo utilizados por el solicitante debido a cambios realizados por los usuarios en sus procedimientos a lo cual implica a realizar ajustes a los productos tecnologicos que cubren la necesidad del solicitante.
J34: ACCIÓN FORMULADA
J35: La Dirección de Sistema y Tecnología en busca de mejorar sus actividades internas decidió desde el Área de Desarrollo de Sistemas de Información iniciar el proceso de actualización de la arquitectura de trabajo y continuar con el seguimiento a las actividades diarias de cada ingeniero. Dicha información es enviada semanalmente al Director de Sistemas y Tecnología para su conocimiento, permitiendo tomar decisiones y acciones frente a la gestión de cada uno de los integrantes de la Dirección de Sistemas y Tecnología, lo cual da como resultado mejores y más productos entregados. Ademas, el procedimiento del Área fue actualizado donde se agrego la directriz de priorización de solicitudes de requerimientos de actualizaciones o desarrollos nuevos por la vicerrectoria academica y la vicerrectoria administrativa y financiera, los cuales se iniciaron a ejecutar en el transcurso de este semestre.
J41: RESPONSABLE
J42: =E14 -> Dirección de Sistemas y Tecnología
C45: PERIODO DE EVALUACIÓN
C46: MES | D46: =IF(J23="MENSUAL","ENERO",IF(J23="TRIMESTRAL","MARZO",IF(J23="SEMESTRAL","JUNIO",IF(J23="ANUAL",YEAR(TODAY()),"")))) -> JUNIO | E46: =IF(J23="MENSUAL","FEBRERO",IF(J23="TRIMESTRAL","JUNIO",IF(J23="SEMESTRAL","DICIEMBRE",""))) -> DICIEMBRE | F46: =IF(J23="MENSUAL","MARZO",IF(J23="TRIMESTRAL","SEPTIEMBRE","")) ->  | G46: =IF(J23="MENSUAL","ABRIL",IF(J23="TRIMESTRAL","DICIEMBRE","")) ->  | H46: =IF(J23="MENSUAL","MAYO","") ->  | I46: =IF(J23="MENSUAL","JUNIO","") ->  | J46: =IF(J23="MENSUAL","JULIO","") ->  | K46: =IF(J23="MENSUAL","AGOSTO","") ->  | L46: =IF(J23="MENSUAL","SEPTIEMBRE","") ->  | M46: =IF(J23="MENSUAL","OCTUBRE","") ->  | N46: =IF(J23="MENSUAL","NOVIEMBRE","") ->  | O46: =IF(J23="MENSUAL","DICIEMBRE","") -> 
C47: =G18 -> Número de soluciones en uso * 100 | D47: 79 | E47: 80
C48: =G19 -> Total de soluciones habilitadas | D48: 97 | E48: 99
C49: VALOR | D49: =IFERROR(IF($E$17=1,D47/D48,IF($E$17=2,D47,"")),"") -> 0.8144329897 | E49: =IFERROR(IF($E$17=1,E47/E48,IF($E$17=2,E47,"")),"") -> 0.8080808081
C50: META PONDERADA | D50: =IF(AND(N23="ANUAL",J23="MENSUAL"),N17/12,IF(AND(N23="ANUAL",J23="TRIMESTRAL"),N17/4,IF(AND(N23="ANUAL",J23="SEMESTRAL"),N17/2,IF(AND(N23="ANUAL",J23="ANUAL"),N17,IF(AND(N23="SEMESTRAL",J23="MENSUAL"),N17/6,IF(AND(N23="SEMESTRAL",J23="TRIMESTRAL"),N17/2,IF(AND(N23="SEMESTRAL",J23="SEMESTRAL"),N17,IF(AND(N23="SEMESTRAL",J23="ANUAL"),"REVISAR FRECUENCIAS",IF(AND(N23="TRIMESTRAL",J23="MENSUAL"),N17/3,IF(AND(N23="TRIMESTRAL",J23="TRIMESTRAL"),N17,IF(AND(N23="TRIMESTRAL",J23="SEMESTRAL"),"REVISAR FRECUENCIAS",IF(AND(N23="TRIMESTRAL",J23="ANUAL"),"REVISAR FRECUENCIAS",IF(AND(N23="MENSUAL",J23="MENSUAL"),N17,IF(AND(N23="MENSUAL",J23="TRIMESTRAL"),"REVISAR FRECUENCIAS",IF(AND(N23="MENSUAL",J23="SEMESTRAL"),"REVISAR FRECUENCIAS",IF(AND(N23="MENSUAL",J23="ANUAL"),"REVISAR FRECUENCIAS","")))))))))))))))) -> 0.8 | E50: =IF(AND(N23="ANUAL",J23="MENSUAL"),N17/12+D50,IF(AND(N23="ANUAL",J23="TRIMESTRAL"),N17/4+D50,IF(AND(N23="ANUAL",J23="SEMESTRAL"),N17/2+D50,IF(AND(N23="SEMESTRAL",J23="MENSUAL"),N17/6+D50,IF(AND(N23="SEMESTRAL",J23="TRIMESTRAL"),N17/2+D50,IF(AND(N23="SEMESTRAL",J23="SEMESTRAL"),N17,IF(AND(N23="TRIMESTRAL",J23="MENSUAL"),N17/3+D50,IF(AND(N23="TRIMESTRAL",J23="TRIMESTRAL"),N17,IF(AND(N23="MENSUAL",J23="MENSUAL"),N17,""))))))))) -> 0.8 | F50: =IF(AND(N23="ANUAL",J23="MENSUAL"),N17/12+E50,IF(AND(N23="ANUAL",J23="TRIMESTRAL"),N17/4+E50,IF(AND(N23="SEMESTRAL",J23="MENSUAL"),N17/6+E50,IF(AND(N23="SEMESTRAL",J23="TRIMESTRAL"),N17/2,IF(AND(N23="TRIMESTRAL",J23="MENSUAL"),N17/3+E50,IF(AND(N23="TRIMESTRAL",J23="TRIMESTRAL"),N17,IF(AND(N23="MENSUAL",J23="MENSUAL"),N17,""))))))) ->  | G50: =IF(AND(N23="ANUAL",J23="MENSUAL"),N17/12+F50,IF(AND(N23="ANUAL",J23="TRIMESTRAL"),N17/4+F50,IF(AND(N23="SEMESTRAL",J23="MENSUAL"),N17/6+F50,IF(AND(N23="SEMESTRAL",J23="TRIMESTRAL"),N17/2+F50,IF(AND(N23="TRIMESTRAL",J23="MENSUAL"),N17/3,IF(AND(N23="TRIMESTRAL",J23="TRIMESTRAL"),N17,IF(AND(N23="MENSUAL",J23="MENSUAL"),N17,""))))))) ->  | H50: =IF(AND($N$23="ANUAL",$J$23="MENSUAL"),$N$17/12+G50,IF(AND(N23="SEMESTRAL",J23="MENSUAL"),N17/6+G50,IF(AND(N23="TRIMESTRAL",J23="MENSUAL"),N17/3+G50,IF(AND(N23="MENSUAL",J23="MENSUAL"),N17,"")))) ->  | I50: =IF(AND($N$23="ANUAL",$J$23="MENSUAL"),$N$17/12+H50,IF(AND(N23="SEMESTRAL",J23="MENSUAL"),N17/6+H50,IF(AND(N23="TRIMESTRAL",J23="MENSUAL"),N17/3+H50,IF(AND(N23="MENSUAL",J23="MENSUAL"),N17,"")))) ->  | J50: =IF(AND($N$23="ANUAL",$J$23="MENSUAL"),$N$17/12+I50,IF(AND(N23="SEMESTRAL",J23="MENSUAL"),N17/6,IF(AND(N23="TRIMESTRAL",J23="MENSUAL"),N17/3,IF(AND(N23="MENSUAL",J23="MENSUAL"),N17,"")))) ->  | K50: =IF(AND($N$23="ANUAL",$J$23="MENSUAL"),$N$17/12+J50,IF(AND(N23="SEMESTRAL",J23="MENSUAL"),N17/6+J50,IF(AND(N23="TRIMESTRAL",J23="MENSUAL"),N17/3+J50,IF(AND(N23="MENSUAL",J23="MENSUAL"),N17,"")))) ->  | L50: =IF(AND($N$23="ANUAL",$J$23="MENSUAL"),$N$17/12+K50,IF(AND(N23="SEMESTRAL",J23="MENSUAL"),N17/6+K50,IF(AND(N23="TRIMESTRAL",J23="MENSUAL"),N17/3+K50,IF(AND(N23="MENSUAL",J23="MENSUAL"),N17,"")))) ->  | M50: =IF(AND($N$23="ANUAL",$J$23="MENSUAL"),$N$17/12+L50,IF(AND(N23="SEMESTRAL",J23="MENSUAL"),N17/6+L50,IF(AND(N23="TRIMESTRAL",J23="MENSUAL"),N17/3,IF(AND(N23="MENSUAL",J23="MENSUAL"),N17,"")))) ->  | N50: =IF(AND($N$23="ANUAL",$J$23="MENSUAL"),$N$17/12+M50,IF(AND(N23="SEMESTRAL",J23="MENSUAL"),N17/6+M50,IF(AND(N23="TRIMESTRAL",J23="MENSUAL"),N17/3+M50,IF(AND(N23="MENSUAL",J23="MENSUAL"),N17,"")))) ->  | O50: =IF(AND($N$23="ANUAL",$J$23="MENSUAL"),$N$17/12+N50,IF(AND(N23="SEMESTRAL",J23="MENSUAL"),N17/6+N50,IF(AND(N23="TRIMESTRAL",J23="MENSUAL"),N17/3+N50,IF(AND(N23="MENSUAL",J23="MENSUAL"),N17,"")))) -> 
C52: NIVEL DE SEGREGACIÓN *
C53: UNIDAD SEGREGADA (Ej. Facultad, Programa Académico, Área) | G53: RESULTADO | K53: ANALISIS DE DATOS SEGREGADO
C62: Diagonal 18 No. 20-29 Fusagasugá – Cundinamarca Teléfono (601) 8281483 Línea Gratuita 018000180414 www.ucundinamarca.edu.co E-mail: info@ucundinamarca.edu.co NIT: 890.680.062-2
C63: Documento controlado por el Sistema de Gestión de la Calidad Asegúrese que corresponde a la última versión consultando el Portal Institucional
G72: Estratégico | J72: Eficacia
G73: Misional | J73: Eficiencia
G74: Apoyo | J74: Acreditación
G75: Seguimiento, Medición, Análisis y Evaluación | J75: Positiva
G76: Direccionamiento Estratégico | J76: Negativa
G77: Planeación Institucional | J77: Por Unidad Regional
G78: Proyectos Especiales y Relaciones Interinstitucionales | J78: Por Facultad
G79: Sistemas Integrados | J79: Por Programa Académico
G80: Autoevaluación y Acreditación | J80: Por área
G81: Comunicaciones | J81: Por Laboratorio
G82: Formación y Aprendizaje | J82: Otros
G83: Ciencia, Tecnología e Innovación | J83: No Aplica
G84: Interacción Social Universitaria
G85: Bienestar Universitario
G86: Admisiones y Registro
G87: Graduados
G88: Dialogando con el Mundo
G89: Talento Humano
G90: Jurídica
G91: Financiera
G92: Sistemas y Tecnología
G93: Bienes y Servicios
G94: Documental
G95: Apoyo Académico
G96: Control Interno
G97: Control Disciplinario
G98: Servicio de Atención al Ciudadano

Sheet ASI-2
B2: REGRESAR
E5: MACROPROCESO ESTRATÉGICO | M5: CÓDIGO: ESGr027
E6: PROCESO GESTIÓN SISTEMAS INTEGRADOS - CALIDAD | M6: VERSIÓN: 8
E7: MATRIZ DE MEDICIÓN Y SEGUIMIENTO A LOS PROCESOS DE GESTIÓN | M7: VIGENCIA: 2023-07-28
M8: PÁGINA: 3 de 6
C10: FICHA DE INDICADOR
C12: MACROPROCESO | E12: Apoyo | I12: NOMBRE DEL INDICADOR | K12: Ejecución de mantenimientos preventivos a recursos informáticos de custodia de la Dirección de Sistemas y Tecnología
C13: PROCESO GESTIÓN | E13: Sistemas y Tecnología
C14: RESPONSABLE DE MEDICIÓN | E14: Dirección de Sistemas y Tecnología
C16: 1. COMPORTAMIENTO DE INDICADOR
C17: CLASIFICACIÓN DE LA MEDICIÓN | E17: 1 | H17: TIPO DE INDICADOR | J17: Eficiencia | L17: META | N17: 0.7
C18: FORMULA | E18: NUMERADOR | G18: Número de actividades ejecutadas * 100 | L18: UNIDAD DE MEDIDA | N18: Porcentual
E19: DENOMINADOR | G19: Total de actividades planeadas
C20: TENDENCIA | E20: Positiva | H20: NIVEL DE SEGREGACIÓN * | J20: Por Unidad Regional | L20: ESCALA
L21: Deficiente | M21: Aceptable | N21: Bueno | O21: Excelente
L22: 0% - 50% | M22: 51% - 60% | N22: 61% - 69,9% | O22: 70% - 100%
C23: ORIGEN DE DATOS NUMERADOR | E23: Cronograma de mantenimiento | H23: FRECUENCIA DE LA MEDICIÓN | J23: TRIMESTRAL | L23: FRECUENCIA DE RESULTADO | N23: SEMESTRAL
C24: ORIGEN DE DATOS DENOMINADOR | E24: Cronograma de mantenimiento
C26: RESULTADOS
J27: ANÁLISIS DE DATOS
J28: El cronograma de mantenimientos preventivos para los equipos de cómputo del área administrativa de las extensiones, seccionales y sede principal, se diseña semestramente, sin embargo, su medición es trimestral. Para la medición del cuarto trimestre de la vigencia 2023 se planificaron 322 equipos comprendidos en las Unidades Regionales Fusagasugá, Ubaté, Girardot, Facatativá, Chía, Soacha y Zipaquirá, sin embargo, se lograron ejecutar 271 mantenimientos preventivos arrojando un porcentaje de eficacia del 84% con una medición EXCELENTE según la escala del indicador. Por lo anterior, se continuo con las estrategias de la programación de los mantenimientos preventivos del segundo trimestre, en donde se tuvo en cuenta las siguientes consideraciones 1. Para esta vigencia se dimensiono la clase de mantenimiento preventivo tipo software y hardware para los recursos informáticos. 2. Se proyectó el plan de mantenimientos dando como prioridad a los recursos informáticos que no se alcanzaron a cubrir en vigencias anteriores. Por último, es importante mencionar que este indicador obedece al Procedimiento ASIP18 - Soporte, Mantenimiento y Monitoreo a la Infraestructura de Red y Recursos Tecnológicos perteneciente a la Dirección de Sistemas y Tecnología, el cual aplica para el desarrollo de las actividades de cada uno de los Ingenieros que representa a la Dirección en cada seccional, extensión y sede principal. Análisis de datos segregado: • Sede Fusagasugá • Seccional Ubaté • Seccional Girardot • Extensión Facatativá • Extensión Chía • Extensión Soacha • Extensión Zipaquirá
J34: ACCIÓN FORMULADA
J35: Se mantiene el porcentaje de efectividad, de acuerdo con el procedimiento ASIP18 Soporte, Mantenimiento y Monitoreo a la Infraestructura de Red y Recursos Tecnológicos, dada la planificación de los mantenimientos el Área de Servicios Tecnológicos en las unidades regionales de Fusagasugá, Girardot, Facatativá, Chía, Soacha y Ubate se cumple con las metas establecidas para este cuarto trimestre frente a la ejecución de los mantenimientos preventivos de hardware y software. Por otra parte, se seguirá trabajando para lograr los objetivos proyectados desde la extension Zipaquira. Como acción de mejora se plantea gestionar la disponibilidad del usuario final y cumpliendo con las fechas establecidas en el cronograma con el fin de evitar demoras en las actividades programadas, debido a que al momento de dirigirse a algunas oficinas o direcciones, estas presentan demora en la entrega de los equipos, lo que retrasa las labores de los ingenieros encargados
J41: RESPONSABLE
J42: =E14 -> Dirección de Sistemas y Tecnología
C45: PERIODO DE EVALUACIÓN
C46: MES | D46: =IF(J23="MENSUAL","ENERO",IF(J23="TRIMESTRAL","MARZO",IF(J23="SEMESTRAL","JUNIO",IF(J23="ANUAL",YEAR(TODAY()),"")))) -> MARZO | E46: =IF(J23="MENSUAL","FEBRERO",IF(J23="TRIMESTRAL","JUNIO",IF(J23="SEMESTRAL","DICIEMBRE",""))) -> JUNIO | F46: =IF(J23="MENSUAL","MARZO",IF(J23="TRIMESTRAL","SEPTIEMBRE","")) -> SEPTIEMBRE | G46: =IF(J23="MENSUAL","ABRIL",IF(J23="TRIMESTRAL","DICIEMBRE","")) -> DICIEMBRE | H46: =IF(J23="MENSUAL","MAYO","") ->  | I46: =IF(J23="MENSUAL","JUNIO","") ->  | J46: =IF(J23="MENSUAL","JULIO","") ->  | K46: =IF(J23="MENSUAL","AGOSTO","") ->  | L46: =IF(J23="MENSUAL","SEPTIEMBRE","") ->  | M46: =IF(J23="MENSUAL","OCTUBRE","") ->  | N46: =IF(J23="MENSUAL","NOVIEMBRE","") ->  | O46: =IF(J23="MENSUAL","DICIEMBRE","") -> 
C47: =G18 -> Número de actividades ejecutadas * 100 | D47: 135 | E47: 368 | F47: 504 | G47: 271
C48: =G19 -> Total de actividades planeadas | D48: 140 | E48: 442 | F48: 635 | G48: 322
C49: VALOR | D49: =IFERROR(IF($E$17=1,D47/D48,IF($E$17=2,D47,"")),"") -> 0.9642857143 | E49: =IFERROR(IF($E$17=1,E47/E48,IF($E$17=2,E47,"")),"") -> 0.8325791855 | F49: 0.7937007874 | G49: 0.8416149068
C50: META PONDERADA | D50: =IF(AND(N23="ANUAL",J23="MENSUAL"),N17/12,IF(AND(N23="ANUAL",J23="TRIMESTRAL"),N17/4,IF(AND(N23="ANUAL",J23="SEMESTRAL"),N17/2,IF(AND(N23="ANUAL",J23="ANUAL"),N17,IF(AND(N23="SEMESTRAL",J23="MENSUAL"),N17/6,IF(AND(N23="SEMESTRAL",J23="TRIMESTRAL"),N17/2,IF(AND(N23="SEMESTRAL",J23="SEMESTRAL"),N17,IF(AND(N23="SEMESTRAL",J23="ANUAL"),"REVISAR FRECUENCIAS",IF(AND(N23="TRIMESTRAL",J23="MENSUAL"),N17/3,IF(AND(N23="TRIMESTRAL",J23="TRIMESTRAL"),N17,IF(AND(N23="TRIMESTRAL",J23="SEMESTRAL"),"REVISAR FRECUENCIAS",IF(AND(N23="TRIMESTRAL",J23="ANUAL"),"REVISAR FRECUENCIAS",IF(AND(N23="MENSUAL",J23="MENSUAL"),N17,IF(AND(N23="MENSUAL",J23="TRIMESTRAL"),"REVISAR FRECUENCIAS",IF(AND(N23="MENSUAL",J23="SEMESTRAL"),"REVISAR FRECUENCIAS",IF(AND(N23="MENSUAL",J23="ANUAL"),"REVISAR FRECUENCIAS","")))))))))))))))) -> 0.35 | E50: =IF(AND(N23="ANUAL",J23="MENSUAL"),N17/12+D50,IF(AND(N23="ANUAL",J23="TRIMESTRAL"),N17/4+D50,IF(AND(N23="ANUAL",J23="SEMESTRAL"),N17/2+D50,IF(AND(N23="SEMESTRAL",J23="MENSUAL"),N17/6+D50,IF(AND(N23="SEMESTRAL",J23="TRIMESTRAL"),N17/2+D50,IF(AND(N23="SEMESTRAL",J23="SEMESTRAL"),N17,IF(AND(N23="TRIMESTRAL",J23="MENSUAL"),N17/3+D50,IF(AND(N23="TRIMESTRAL",J23="TRIMESTRAL"),N17,IF(AND(N23="MENSUAL",J23="MENSUAL"),N17,""))))))))) -> 0.7 | F50: =IF(AND(N23="ANUAL",J23="MENSUAL"),N17/12+E50,IF(AND(N23="ANUAL",J23="TRIMESTRAL"),N17/4+E50,IF(AND(N23="SEMESTRAL",J23="MENSUAL"),N17/6+E50,IF(AND(N23="SEMESTRAL",J23="TRIMESTRAL"),N17/2,IF(AND(N23="TRIMESTRAL",J23="MENSUAL"),N17/3+E50,IF(AND(N23="TRIMESTRAL",J23="TRIMESTRAL"),N17,IF(AND(N23="MENSUAL",J23="MENSUAL"),N17,""))))))) -> 0.35 | G50: =IF(AND(N23="ANUAL",J23="MENSUAL"),N17/12+F50,IF(AND(N23="ANUAL",J23="TRIMESTRAL"),N17/4+F50,IF(AND(N23="SEMESTRAL",J23="MENSUAL"),N17/6+F50,IF(AND(N23="SEMESTRAL",J23="TRIMESTRAL"),N17/2+F50,IF(AND(N23="TRIMESTRAL",J23="MENSUAL"),N17/3,IF(AND(N23="TRIMESTRAL",J23="TRIMESTRAL"),N17,IF(AND(N23="MENSUAL",J23="MENSUAL"),N17,""))))))) -> 0.7 | H50: =IF(AND($N$23="ANUAL",$J$23="MENSUAL"),$N$17/12+G50,IF(AND(N23="SEMESTRAL",J23="MENSUAL"),N17/6+G50,IF(AND(N23="TRIMESTRAL",J23="MENSUAL"),N17/3+G50,IF(AND(N23="MENSUAL",J23="MENSUAL"),N17,"")))) ->  | I50: =IF(AND($N$23="ANUAL",$J$23="MENSUAL"),$N$17/12+H50,IF(AND(N23="SEMESTRAL",J23="MENSUAL"),N17/6+H50,IF(AND(N23="TRIMESTRAL",J23="MENSUAL"),N17/3+H50,IF(AND(N23="MENSUAL",J23="MENSUAL"),N17,"")))) ->  | J50: =IF(AND($N$23="ANUAL",$J$23="MENSUAL"),$N$17/12+I50,IF(AND(N23="SEMESTRAL",J23="MENSUAL"),N17/6,IF(AND(N23="TRIMESTRAL",J23="MENSUAL"),N17/3,IF(AND(N23="MENSUAL",J23="MENSUAL"),N17,"")))) ->  | K50: =IF(AND($N$23="ANUAL",$J$23="MENSUAL"),$N$17/12+J50,IF(AND(N23="SEMESTRAL",J23="MENSUAL"),N17/6+J50,IF(AND(N23="TRIMESTRAL",J23="MENSUAL"),N17/3+J50,IF(AND(N23="MENSUAL",J23="MENSUAL"),N17,"")))) ->  | L50: =IF(AND($N$23="ANUAL",$J$23="MENSUAL"),$N$17/12+K50,IF(AND(N23="SEMESTRAL",J23="MENSUAL"),N17/6+K50,IF(AND(N23="TRIMESTRAL",J23="MENSUAL"),N17/3+K50,IF(AND(N23="MENSUAL",J23="MENSUAL"),N17,"")))) ->  | M50: =IF(AND($N$23="ANUAL",$J$23="MENSUAL"),$N$17/12+L50,IF(AND(N23="SEMESTRAL",J23="MENSUAL"),N17/6+L50,IF(AND(N23="TRIMESTRAL",J23="MENSUAL"),N17/3,IF(AND(N23="MENSUAL",J23="MENSUAL"),N17,"")))) ->  | N50: =IF(AND($N$23="ANUAL",$J$23="MENSUAL"),$N$17/12+M50,IF(AND(N23="SEMESTRAL",J23="MENSUAL"),N17/6+M50,IF(AND(N23="TRIMESTRAL",J23="MENSUAL"),N17/3+M50,IF(AND(N23="MENSUAL",J23="MENSUAL"),N17,"")))) ->  | O50: =IF(AND($N$23="ANUAL",$J$23="MENSUAL"),$N$17/12+N50,IF(AND(N23="SEMESTRAL",J23="MENSUAL"),N17/6+N50,IF(AND(N23="TRIMESTRAL",J23="MENSUAL"),N17/3+N50,IF(AND(N23="MENSUAL",J23="MENSUAL"),N17,"")))) -> 
C52: NIVEL DE SEGREGACIÓN *
C53: UNIDAD SEGREGADA (Ej. Facultad, Programa Académico, Área) | G53: RESULTADO | K53: ANALISIS DE DATOS SEGREGADO
C54: Sede Fusagasugá | G54: 0.93 | K54: En relación con la Sede Fusagasugá, los resultados obtenidos para el cierre del cuarto trimestre se consideran excelentes, dado que se han cumplido las actividades en su totalidad (93% de efectividad), el cual corresponde a un total de 143 actividades ejecutadas de las 150 programadas. Esto representa un avance para el cierre del cuarto trimestre.
C55: Seccional Girardot | G55: 0.97 | K55: En relación con la seccional Girardot, los resultados obtenidos para el cierre del cuarto trimestre se consideran excelentes, dado que se han cumplido las actividades en su totalidad (100% de efectividad), es decir, se han realizado los 18 mantenimientos programados.
C56: Seccional Ubaté | G56: 0.85 | K56: Dada las multiples actividades internas en la Seccional Ubate por parte de los usuarios, de igual manera se incrementaron los mantenimientos de la Seccional ya que se les realizo el mantenimiento algunas salas adscritas a la Unidad de Apoyo Academico no se alcanzo a ejecutar la totalidad de los mantenimientos a para la vigencia del tercer trimestre, por lo cual se realiza la respectiva reprogramación según las vigencias establecidas en el cronograma de la Seccional. En relación con la extensión Ubaté, los resultados obtenidos para el cierre del cuarto trimestre se consideran buenos, dado que se consolidó un porcentaje de efectividad del 85%, el cual corresponde a un total de 43 actividades ejecutadas de las 56 programadas. Esto representa un avance para el cierre del cuarto trimestre.
C57: Extensión Soacha | G57: 0.92 | K57: En la extensión Soacha los resultados consolidados del cierre del cuarto trimestre representan una escala excelente con 92% de efectividad, lo cual significa que se ejecutaron las 19 actividades programadas.
C58: Extensión Facatativá | G58: 0.51 | K58: Dada las multiples actividades internas en la extensión Factativá por parte de los usuarios y que solo hay un ingeniero de soporte en sitio no se ejecutaron a totalidad los mantenimientos programados para la vigencia del cuarto trimestre, por lo cual se realiza la respectiva reprogramación según las vigencias establecidas en el cronograma de la extensión En la extensión Facatativa los resultados consolidados del cierre del cuarto trimetre representan una escala aceptable con 51% de efectividad, lo cual significa que se ejecutaron 30 actividades de las 11 programadas.
C59: Extensión Chía | G59: 0.77 | K59: En relación con la extensión Chía, los resultados obtenidos para el cierre del cuarto trimestre se consideran buenos, dado que se consolidó un porcentaje de efectividad del 70%, el cual corresponde a un total de 19 actividades ejecutadas de las 23 programadas. Esto representa un avance para el cierre del tercer trimestre.
C60: Extensión Zipaquirá | G60: 0.43 | K60: En relación con la extensión Zipaquira, los resultados obtenidos para el cierre del cuarto trimestre se consideran deficientes, dado que se consolido un 43% de lo programado, es decir, se realizaron 18 actividades de las 23 proyectadas. Lo anterior, hace referencia a que debido a la adecuación de la nueva sede, el ingeniero a cargo debió apoyar diversas tareas que afectaron la ejecución de las actividades de mantenimiento proyectadas.
C62: Diagonal 18 No. 20-29 Fusagasugá – Cundinamarca Teléfono (601) 8281483 Línea Gratuita 018000180414 www.ucundinamarca.edu.co E-mail: info@ucundinamarca.edu.co NIT: 890.680.062-2
C63: Documento controlado por el Sistema de Gestión de la Calidad Asegúrese que corresponde a la última versión consultando el Portal Institucional
G72: Estratégico | J72: Eficacia
G73: Misional | J73: Eficiencia
G74: Apoyo | J74: Acreditación
G75: Seguimiento, Medición, Análisis y Evaluación | J75: Positiva
G76: Direccionamiento Estratégico | J76: Negativa
G77: Planeación Institucional | J77: Por Unidad Regional
G78: Proyectos Especiales y Relaciones Interinstitucionales | J78: Por Facultad
G79: Sistemas Integrados | J79: Por Programa Académico
G80: Autoevaluación y Acreditación | J80: Por área
G81: Comunicaciones | J81: Por Laboratorio
G82: Formación y Aprendizaje | J82: Otros
G83: Ciencia, Tecnología e Innovación | J83: No Aplica
G84: Interacción Social Universitaria
G85: Bienestar Universitario
G86: Admisiones y Registro
G87: Graduados
G88: Dialogando con el Mundo
G89: Talento Humano
G90: Jurídica
G91: Financiera
G92: Sistemas y Tecnología
G93: Bienes y Servicios
G94: Documental
G95: Apoyo Académico
G96: Control Interno
G97: Control Disciplinario
G98: Servicio de Atención al Ciudadano

Sheet ASI-3
B2: REGRESAR
E5: MACROPROCESO ESTRATÉGICO | M5: CÓDIGO: ESGr027
E6: PROCESO GESTIÓN SISTEMAS INTEGRADOS - CALIDAD | M6: VERSIÓN: 8
E7: MATRIZ DE MEDICIÓN Y SEGUIMIENTO A LOS PROCESOS DE GESTIÓN | M7: VIGENCIA: 2023-07-28
M8: PÁGINA: 4 de 6
C10: FICHA DE INDICADOR
C12: MACROPROCESO | E12: Apoyo | I12: NOMBRE DEL INDICADOR | K12: Ejecución de mantenimientos preventivos a cuartos de telecomunicaciones (TR's) y centros de datos (CD's) de la sede seccionales y extensiones en custodia de la Dirección de Sistemas y Tecnología
C13: PROCESO GESTIÓN | E13: Sistemas y Tecnología
C14: RESPONSABLE DE MEDICIÓN | E14: Dirección de Sistemas y Tecnología
C16: 1. COMPORTAMIENTO DE INDICADOR
C17: CLASIFICACIÓN DE LA MEDICIÓN | E17: 1 | H17: TIPO DE INDICADOR | J17: Eficiencia | L17: META | N17: 0.7
C18: FORMULA | E18: NUMERADOR | G18: Número de actividades ejecutadas*100 | L18: UNIDAD DE MEDIDA | N18: Porcentual
E19: DENOMINADOR | G19: Total de actividades planeadas
C20: TENDENCIA | E20: Positiva | H20: NIVEL DE SEGREGACIÓN * | J20: Por Unidad Regional | L20: ESCALA
L21: Deficiente | M21: Aceptable | N21: Bueno | O21: Excelente
L22: 0% - 50% | M22: 51% - 60% | N22: 61% - 69,9% | O22: 70% - 100%
C23: ORIGEN DE DATOS NUMERADOR | E23: Cronograma de mantenimiento | H23: FRECUENCIA DE LA MEDICIÓN | J23: TRIMESTRAL | L23: FRECUENCIA DE RESULTADO | N23: SEMESTRAL
C24: ORIGEN DE DATOS DENOMINADOR | E24: Cronograma de mantenimiento
C26: RESULTADOS
J27: ANÁLISIS DE DATOS
J28: De acuerdo a la planificación de los Cronogramas de mantenimientos preventivos a los cuartos de telecomunicaciones (TR´s) y centros de datos (CD's) de la sede Fusagasugá, Seccional Girardot y Ubaté, extensión Soacha, Facatativá, Chía y Zipaquirá, en custodia de la Dirección de Sistemas y Tecnología en donde se especificaron las fechas establecidas para el desarrollo de las actividades comprendidas entre los meses de Octubre, Noviembre y Diciembre. De las 23 actividades programadas, se ejecutaron 22 actividades, estos resultados representan un índice de efectividad del 96% ubicándose en la escala Excelente. Las actividades realizadas en cada mantenimiento incluyeron la limpieza exterior e interior de los racks con el fin de eliminar el polvo acumulado en los equipos y paneles, verificación de los puertos troncales y DCHP Snooping, cambio de contraseña y adicionalmente se realizó la copia de seguridad o Backup de cada dispositivo de red (Switch) ubicado en cada rack. Por último, se diligenció el formato ASIF060 LISTA DE VERIFICACION BACKUPS Y LIMPIEZA DE CDS Y TRS, en el que se especificaron las actividades realizadas tanto de limpieza del TR como en el Proceso de Backup, cambio de Contraseña y Bitácora de Switches, todo esto siguiendo el Procedimiento descrito en el manual ASIM017 “MANUAL DE SERVICIOS TECNOLOGICOS” perteneciente a la Dirección de Sistemas y Tecnología. Para las extensiones de Facatativá, chia, Soacha y Zipaquirá, y la seccional Girardot se logró cumplir con el 100% de las actividades programadas, sin embargo, la seccional Ubate quedó con un porcentaje del 67% al no cumplir a cabalidad con las actividades programadas, debido a las múltiples actividades y solicitudes internas por parte de los usuarios, cabe resaltar que solo se cuenta con un ingeniero de soporte en sitio
J34: ACCIÓN FORMULADA
J35: Se mantiene el porcentaje de efectividad, de acuerdo con la meta establecida para el indicador que atiende al procedimiento ASIP18 - Soporte, Mantenimiento y Monitoreo a la Infraestructura de Red y Recursos Tecnológicos. En la sede Fusagasugá, seccional Girardot y las extensiones Zipaquirá, Facatativá, soacha y chía, se espera continuar realizando seguimientos constantes que conlleven a seguir cumpliendo las metas establecidas. En el caso de la seccional Ubate que no logró cumplir el 100% de las actividades programadas, se propone como acción de mejora realizar una mejor planificación de las actividades del ingeniero en sitio para la vigencia 2024.
J41: RESPONSABLE
J42: =E14 -> Dirección de Sistemas y Tecnología
C45: PERIODO DE EVALUACIÓN
C46: MES | D46: =IF(J23="MENSUAL","ENERO",IF(J23="TRIMESTRAL","MARZO",IF(J23="SEMESTRAL","JUNIO",IF(J23="ANUAL",YEAR(TODAY()),"")))) -> MARZO | E46: =IF(J23="MENSUAL","FEBRERO",IF(J23="TRIMESTRAL","JUNIO",IF(J23="SEMESTRAL","DICIEMBRE",""))) -> JUNIO | F46: =IF(J23="MENSUAL","MARZO",IF(J23="TRIMESTRAL","SEPTIEMBRE","")) -> SEPTIEMBRE | G46: =IF(J23="MENSUAL","ABRIL",IF(J23="TRIMESTRAL","DICIEMBRE","")) -> DICIEMBRE | H46: =IF(J23="MENSUAL","MAYO","") ->  | I46: =IF(J23="MENSUAL","JUNIO","") ->  | J46: =IF(J23="MENSUAL","JULIO","") ->  | K46: =IF(J23="MENSUAL","AGOSTO","") ->  | L46: =IF(J23="MENSUAL","SEPTIEMBRE","") ->  | M46: =IF(J23="MENSUAL","OCTUBRE","") ->  | N46: =IF(J23="MENSUAL","NOVIEMBRE","") ->  | O46: =IF(J23="MENSUAL","DICIEMBRE","") -> 
C47: =G18 -> Número de actividades ejecutadas*100 | D47: 12 | E47: 21 | F47: 14 | G47: 22
C48: =G19 -> Total de actividades planeadas | D48: 17 | E48: 29 | F48: 23 | G48: 23
C49: VALOR | D49: =IFERROR(IF($E$17=1,D47/D48,IF($E$17=2,D47,"")),"") -> 0.7058823529 | E49: =IFERROR(IF($E$17=1,E47/E48,IF($E$17=2,E47,"")),"") -> 0.724137931 | F49: 0.6086956522 | G49: 0.9565217391
C50: META PONDERADA | D50: =IF(AND(N23="ANUAL",J23="MENSUAL"),N17/12,IF(AND(N23="ANUAL",J23="TRIMESTRAL"),N17/4,IF(AND(N23="ANUAL",J23="SEMESTRAL"),N17/2,IF(AND(N23="ANUAL",J23="ANUAL"),N17,IF(AND(N23="SEMESTRAL",J23="MENSUAL"),N17/6,IF(AND(N23="SEMESTRAL",J23="TRIMESTRAL"),N17/2,IF(AND(N23="SEMESTRAL",J23="SEMESTRAL"),N17,IF(AND(N23="SEMESTRAL",J23="ANUAL"),"REVISAR FRECUENCIAS",IF(AND(N23="TRIMESTRAL",J23="MENSUAL"),N17/3,IF(AND(N23="TRIMESTRAL",J23="TRIMESTRAL"),N17,IF(AND(N23="TRIMESTRAL",J23="SEMESTRAL"),"REVISAR FRECUENCIAS",IF(AND(N23="TRIMESTRAL",J23="ANUAL"),"REVISAR FRECUENCIAS",IF(AND(N23="MENSUAL",J23="MENSUAL"),N17,IF(AND(N23="MENSUAL",J23="TRIMESTRAL"),"REVISAR FRECUENCIAS",IF(AND(N23="MENSUAL",J23="SEMESTRAL"),"REVISAR FRECUENCIAS",IF(AND(N23="MENSUAL",J23="ANUAL"),"REVISAR FRECUENCIAS","")))))))))))))))) -> 0.35 | E50: =IF(AND(N23="ANUAL",J23="MENSUAL"),N17/12+D50,IF(AND(N23="ANUAL",J23="TRIMESTRAL"),N17/4+D50,IF(AND(N23="ANUAL",J23="SEMESTRAL"),N17/2+D50,IF(AND(N23="SEMESTRAL",J23="MENSUAL"),N17/6+D50,IF(AND(N23="SEMESTRAL",J23="TRIMESTRAL"),N17/2+D50,IF(AND(N23="SEMESTRAL",J23="SEMESTRAL"),N17,IF(AND(N23="TRIMESTRAL",J23="MENSUAL"),N17/3+D50,IF(AND(N23="TRIMESTRAL",J23="TRIMESTRAL"),N17,IF(AND(N23="MENSUAL",J23="MENSUAL"),N17,""))))))))) -> 0.7 | F50: =IF(AND(N23="ANUAL",J23="MENSUAL"),N17/12+E50,IF(AND(N23="ANUAL",J23="TRIMESTRAL"),N17/4+E50,IF(AND(N23="SEMESTRAL",J23="MENSUAL"),N17/6+E50,IF(AND(N23="SEMESTRAL",J23="TRIMESTRAL"),N17/2,IF(AND(N23="TRIMESTRAL",J23="MENSUAL"),N17/3+E50,IF(AND(N23="TRIMESTRAL",J23="TRIMESTRAL"),N17,IF(AND(N23="MENSUAL",J23="MENSUAL"),N17,""))))))) -> 0.35 | G50: =IF(AND(N23="ANUAL",J23="MENSUAL"),N17/12+F50,IF(AND(N23="ANUAL",J23="TRIMESTRAL"),N17/4+F50,IF(AND(N23="SEMESTRAL",J23="MENSUAL"),N17/6+F50,IF(AND(N23="SEMESTRAL",J23="TRIMESTRAL"),N17/2+F50,IF(AND(N23="TRIMESTRAL",J23="MENSUAL"),N17/3,IF(AND(N23="TRIMESTRAL",J23="TRIMESTRAL"),N17,IF(AND(N23="MENSUAL",J23="MENSUAL"),N17,""))))))) -> 0.7 | H50: =IF(AND($N$23="ANUAL",$J$23="MENSUAL"),$N$17/12+G50,IF(AND(N23="SEMESTRAL",J23="MENSUAL"),N17/6+G50,IF(AND(N23="TRIMESTRAL",J23="MENSUAL"),N17/3+G50,IF(AND(N23="MENSUAL",J23="MENSUAL"),N17,"")))) ->  | I50: =IF(AND($N$23="ANUAL",$J$23="MENSUAL"),$N$17/12+H50,IF(AND(N23="SEMESTRAL",J23="MENSUAL"),N17/6+H50,IF(AND(N23="TRIMESTRAL",J23="MENSUAL"),N17/3+H50,IF(AND(N23="MENSUAL",J23="MENSUAL"),N17,"")))) ->  | J50: =IF(AND($N$23="ANUAL",$J$23="MENSUAL"),$N$17/12+I50,IF(AND(N23="SEMESTRAL",J23="MENSUAL"),N17/6,IF(AND(N23="TRIMESTRAL",J23="MENSUAL"),N17/3,IF(AND(N23="MENSUAL",J23="MENSUAL"),N17,"")))) ->  | K50: =IF(AND($N$23="ANUAL",$J$23="MENSUAL"),$N$17/12+J50,IF(AND(N23="SEMESTRAL",J23="MENSUAL"),N17/6+J50,IF(AND(N23="TRIMESTRAL",J23="MENSUAL"),N17/3+J50,IF(AND(N23="MENSUAL",J23="MENSUAL"),N17,"")))) ->  | L50: =IF(AND($N$23="ANUAL",$J$23="MENSUAL"),$N$17/12+K50,IF(AND(N23="SEMESTRAL",J23="MENSUAL"),N17/6+K50,IF(AND(N23="TRIMESTRAL",J23="MENSUAL"),N17/3+K50,IF(AND(N23="MENSUAL",J23="MENSUAL"),N17,"")))) ->  | M50: =IF(AND($N$23="ANUAL",$J$23="MENSUAL"),$N$17/12+L50,IF(AND(N23="SEMESTRAL",J23="MENSUAL"),N17/6+L50,IF(AND(N23="TRIMESTRAL",J23="MENSUAL"),N17/3,IF(AND(N23="MENSUAL",J23="MENSUAL"),N17,"")))) ->  | N50: =IF(AND($N$23="ANUAL",$J$23="MENSUAL"),$N$17/12+M50,IF(AND(N23="SEMESTRAL",J23="MENSUAL"),N17/6+M50,IF(AND(N23="TRIMESTRAL",J23="MENSUAL"),N17/3+M50,IF(AND(N23="MENSUAL",J23="MENSUAL"),N17,"")))) ->  | O50: =IF(AND($N$23="ANUAL",$J$23="MENSUAL"),$N$17/12+N50,IF(AND(N23="SEMESTRAL",J23="MENSUAL"),N17/6+N50,IF(AND(N23="TRIMESTRAL",J23="MENSUAL"),N17/3+N50,IF(AND(N23="MENSUAL",J23="MENSUAL"),N17,"")))) -> 
C52: NIVEL DE SEGREGACIÓN *
C53: UNIDAD SEGREGADA (Ej. Facultad, Programa Académico, Área) | G53: RESULTADO | K53: ANALISIS DE DATOS SEGREGADO
C54: Sede Fusagasugá | G54: 1 | K54: Para la sede Fusagasugá, dentro del cumplimiento de la meta se encuentra en la escala excelente, considerándose un gran logro obtenido gracias al trabajo, la disciplina y el compromiso del equipo de trabajo; dado que la proyección inicial anual era del 70% y se ejecutó el 100%, con 11 actividades programadas y 11 ejecutadas.
C55: Seccional Girardot | G55: 1 | K55: Para la Seccional Girardot, dentro del cumplimiento de la meta se encuentra en la escala excelente, considerándose un gran logro obtenido gracias al trabajo, la disciplina y el compromiso del ingeniero de servicios tecnologicos de la Seccional; dado que la proyección inicial anual era del 70% y se ejecutó el 100%, con 4 actividades programadas y 4 ejecutadas.
C56: Extensión Facatativá | G56: 1 | K56: Para la Extensión Facatativá, dentro del cumplimiento de la meta se encuentra en la escala excelente, considerándose un gran logro obtenido gracias al trabajo, la disciplina y el compromiso del ingeniero de servicios tecnologicos de la Seccional; dado que la proyección inicial anual era del 70% y se ejecutó el 100%, con 1 actividad programada y 1 ejecutada.
C57: Extensión Chía | G57: 1 | K57: Para la Extensión Chía, dentro del cumplimiento de la meta se encuentra en la escala excelente, considerándose un gran logro obtenido gracias al trabajo, la disciplina y el compromiso del ingeniero de servicios tecnologicos de la Seccional; dado que la proyección inicial anual era del 70% y se ejecutó el 100%, con 2 actividades programadas y 2 ejecutadas.
C58: Extensión Soacha | G58: 1 | K58: Para la Extensión Soacha, dentro del cumplimiento de la meta se encuentra en la escala excelente, considerándose un gran logro obtenido gracias al trabajo, la disciplina y el compromiso del ingeniero de servicios tecnologicos de la Seccional; dado que la proyección inicial anual era del 70% y se ejecutó el 100%, con 1 actividad programada y 1 ejecutada.
C59: Extensión Zipaquirá | G59: 1 | K59: Para la Extensión Zipaquirá, dentro del cumplimiento de la meta se encuentra en la escala excelente, considerándose un gran logro obtenido gracias al trabajo, la disciplina y el compromiso del ingeniero de servicios tecnologicos de la Seccional; dado que la proyección inicial anual era del 70% y se ejecutó el 100%, con 1 actividad programada y 1 ejecutada.
C60: Seccional Ubate | G60: 0.67 | K60: Para la Seccional Ubate, dentro del cumplimiento de la meta se encuentra en la escala excelente, considerándose un gran logro obtenido gracias al trabajo, la disciplina y el compromiso del ingeniero de servicios tecnologicos de la Seccional; con 3 actividades programadas y 2 ejecutadas con un porcentaje del 67% de eficacia. Dada las multiples actividades internas en la Seccional Ubate por parte de los usuarios.
C62: Diagonal 18 No. 20-29 Fusagasugá – Cundinamarca Teléfono (601) 8281483 Línea Gratuita 018000180414 www.ucundinamarca.edu.co E-mail: info@ucundinamarca.edu.co NIT: 890.680.062-2
C63: Documento controlado por el Sistema de Gestión de la Calidad Asegúrese que corresponde a la última versión consultando el Portal Institucional
G72: Estratégico | J72: Eficacia
G73: Misional | J73: Eficiencia
G74: Apoyo | J74: Acreditación
G75: Seguimiento, Medición, Análisis y Evaluación | J75: Positiva
G76: Direccionamiento Estratégico | J76: Negativa
G77: Planeación Institucional | J77: Por Unidad Regional
G78: Proyectos Especiales y Relaciones Interinstitucionales | J78: Por Facultad
G79: Sistemas Integrados | J79: Por Programa Académico
G80: Autoevaluación y Acreditación | J80: Por área
G81: Comunicaciones | J81: Por Laboratorio
G82: Formación y Aprendizaje | J82: Otros
G83: Ciencia, Tecnología e Innovación | J83: No Aplica
G84: Interacción Social Universitaria
G85: Bienestar Universitario
G86: Admisiones y Registro
G87: Graduados
G88: Dialogando con el Mundo
G89: Talento Humano
G90: Jurídica
G91: Financiera
G92: Sistemas y Tecnología
G93: Bienes y Servicios
G94: Documental
G95: Apoyo Académico
G96: Control Interno
G97: Control Disciplinario
G98: Servicio de Atención al Ciudadano

Sheet ASI-4
B2: REGRESAR
E5: MACROPROCESO ESTRATÉGICO | M5: CÓDIGO: ESGr027
E6: PROCESO GESTIÓN SISTEMAS INTEGRADOS - CALIDAD | M6: VERSIÓN: 8
E7: MATRIZ DE MEDICIÓN Y SEGUIMIENTO A LOS PROCESOS DE GESTIÓN | M7: VIGENCIA: 2023-07-28
M8: PÁGINA: 5 de 6
C10: FICHA DE INDICADOR
C12: MACROPROCESO | E12: Apoyo | I12: NOMBRE DEL INDICADOR | K12: Efectividad del Servicio - Mesa de Servicios a un Clic
C13: PROCESO GESTIÓN | E13: Sistemas y Tecnología
C14: RESPONSABLE DE MEDICIÓN | E14: Dirección de Sistemas y Tecnología
C16: 1. COMPORTAMIENTO DE INDICADOR
C17: CLASIFICACIÓN DE LA MEDICIÓN | E17: 1 | H17: TIPO DE INDICADOR | J17: Eficiencia | L17: META | N17: 0.75
C18: FORMULA | E18: NUMERADOR | G18: Total de solicitudes atendidas en 10 días hábiles * 100 | L18: UNIDAD DE MEDIDA | N18: Porcentual
E19: DENOMINADOR | G19: Número de solicitudes
C20: TENDENCIA | E20: Positiva | H20: NIVEL DE SEGREGACIÓN * | J20: Otros | L20: ESCALA
L21: Deficiente | M21: Aceptable | N21: Bueno | O21: Excelente
L22: 0% - 50% | M22: 51% - 60% | N22: 61% - 74,9% | O22: 75% - 100%
C23: ORIGEN DE DATOS NUMERADOR | E23: Sistema Institucional de Solicitudes (SIS) | H23: FRECUENCIA DE LA MEDICIÓN | J23: SEMESTRAL | L23: FRECUENCIA DE RESULTADO | N23: SEMESTRAL
C24: ORIGEN DE DATOS DENOMINADOR | E24: Sistema Institucional de Solicitudes (SIS)
C26: RESULTADOS
J27: ANÁLISIS DE DATOS
J28: En el transcurso del segundo semestre del año 2023, la Dirección de Sistemas y Tecnología en sus áreas adscritas Uso y Apropiación de los Sistemas de Información, recepciono 1,082 solicitudes de los diferentes servicios que ofrece esta área, de las cuales 940 se atendieron dentro de los primero 10 días habiles. El Área de Servicios Tecnologicos, recepciono 347 solicitudes de los diferentes servicios que ofrece esta área, de las cuales 195 se atendieron dentro de los primeros 10 días habiles. Es de resaltar que, dependiendo el servicio al cual se realizo la solicitud, así mismo es el tiempo de respuesta, esto teniendo en cuenta que cada servicio que ofrece la Dirección de Sistemas y Tecnología cuenta con un nivel de complejidad diferente, por lo tanto, las 167 solicitudes faltantes se respondieron fuera de los 10 días habiles y 127 solicitudes se encuentran en seguimiento y en ejecución por los gestores de las áreas de esta Dirección.
J34: ACCIÓN FORMULADA
J35: Este indicador se mide semestral y atiende al manual ASIM001 Servicios Tecnologicos (mantenimiento de recursos tecnologicos - conectividad - acompañamiento a eventos- office 360 -365 - gestión de proyectos) y Uso y Apropiación (roles y creacion de usuarios - soportes - capacitaciones- reportes) dentro del apartado de recepción y atención de solicitudes de los servicios de Dirección de Sistemas y Tecnologia. Por otra parte, la Dirección de Sistemas y Tecnología se encuentra trabajando para lograr los objetivos y así mejorar la eficacia en los tiempos de respuesta en los servicios que se ofrecen desde esta dirección apoyando los demas procesos de la institución y de esta manera mejorar la satisfacción del usuario final.
J41: RESPONSABLE
J42: =E14 -> Dirección de Sistemas y Tecnología
C45: PERIODO DE EVALUACIÓN
C46: MES | D46: =IF(J23="MENSUAL","ENERO",IF(J23="TRIMESTRAL","MARZO",IF(J23="SEMESTRAL","JUNIO",IF(J23="ANUAL",YEAR(TODAY()),"")))) -> JUNIO | E46: =IF(J23="MENSUAL","FEBRERO",IF(J23="TRIMESTRAL","JUNIO",IF(J23="SEMESTRAL","DICIEMBRE",""))) -> DICIEMBRE | F46: =IF(J23="MENSUAL","MARZO",IF(J23="TRIMESTRAL","SEPTIEMBRE","")) ->  | G46: =IF(J23="MENSUAL","ABRIL",IF(J23="TRIMESTRAL","DICIEMBRE","")) ->  | H46: =IF(J23="MENSUAL","MAYO","") ->  | I46: =IF(J23="MENSUAL","JUNIO","") ->  | J46: =IF(J23="MENSUAL","JULIO","") ->  | K46: =IF(J23="MENSUAL","AGOSTO","") ->  | L46: =IF(J23="MENSUAL","SEPTIEMBRE","") ->  | M46: =IF(J23="MENSUAL","OCTUBRE","") ->  | N46: =IF(J23="MENSUAL","NOVIEMBRE","") ->  | O46: =IF(J23="MENSUAL","DICIEMBRE","") -> 
C47: =G18 -> Total de solicitudes atendidas en 10 días hábiles * 100 | D47: 1197 | E47: 1135
C48: =G19 -> Número de solicitudes | D48: 1635 | E48: 1429
C49: VALOR | D49: =IFERROR(IF($E$17=1,D47/D48,IF($E$17=2,D47,"")),"") -> 0.7321100917 | E49: =IFERROR(IF($E$17=1,E47/E48,IF($E$17=2,E47,"")),"") -> 0.7942617215
C50: META PONDERADA | D50: =IF(AND(N23="ANUAL",J23="MENSUAL"),N17/12,IF(AND(N23="ANUAL",J23="TRIMESTRAL"),N17/4,IF(AND(N23="ANUAL",J23="SEMESTRAL"),N17/2,IF(AND(N23="ANUAL",J23="ANUAL"),N17,IF(AND(N23="SEMESTRAL",J23="MENSUAL"),N17/6,IF(AND(N23="SEMESTRAL",J23="TRIMESTRAL"),N17/2,IF(AND(N23="SEMESTRAL",J23="SEMESTRAL"),N17,IF(AND(N23="SEMESTRAL",J23="ANUAL"),"REVISAR FRECUENCIAS",IF(AND(N23="TRIMESTRAL",J23="MENSUAL"),N17/3,IF(AND(N23="TRIMESTRAL",J23="TRIMESTRAL"),N17,IF(AND(N23="TRIMESTRAL",J23="SEMESTRAL"),"REVISAR FRECUENCIAS",IF(AND(N23="TRIMESTRAL",J23="ANUAL"),"REVISAR FRECUENCIAS",IF(AND(N23="MENSUAL",J23="MENSUAL"),N17,IF(AND(N23="MENSUAL",J23="TRIMESTRAL"),"REVISAR FRECUENCIAS",IF(AND(N23="MENSUAL",J23="SEMESTRAL"),"REVISAR FRECUENCIAS",IF(AND(N23="MENSUAL",J23="ANUAL"),"REVISAR FRECUENCIAS","")))))))))))))))) -> 0.75 | E50: =IF(AND(N23="ANUAL",J23="MENSUAL"),N17/12+D50,IF(AND(N23="ANUAL",J23="TRIMESTRAL"),N17/4+D50,IF(AND(N23="ANUAL",J23="SEMESTRAL"),N17/2+D50,IF(AND(N23="SEMESTRAL",J23="MENSUAL"),N17/6+D50,IF(AND(N23="SEMESTRAL",J23="TRIMESTRAL"),N17/2+D50,IF(AND(N23="SEMESTRAL",J23="SEMESTRAL"),N17,IF(AND(N23="TRIMESTRAL",J23="MENSUAL"),N17/3+D50,IF(AND(N23="TRIMESTRAL",J23="TRIMESTRAL"),N17,IF(AND(N23="MENSUAL",J23="MENSUAL"),N17,""))))))))) -> 0.75 | F50: =IF(AND(N23="ANUAL",J23="MENSUAL"),N17/12+E50,IF(AND(N23="ANUAL",J23="TRIMESTRAL"),N17/4+E50,IF(AND(N23="SEMESTRAL",J23="MENSUAL"),N17/6+E50,IF(AND(N23="SEMESTRAL",J23="TRIMESTRAL"),N17/2,IF(AND(N23="TRIMESTRAL",J23="MENSUAL"),N17/3+E50,IF(AND(N23="TRIMESTRAL",J23="TRIMESTRAL"),N17,IF(AND(N23="MENSUAL",J23="MENSUAL"),N17,""))))))) ->  | G50: =IF(AND(N23="ANUAL",J23="MENSUAL"),N17/12+F50,IF(AND(N23="ANUAL",J23="TRIMESTRAL"),N17/4+F50,IF(AND(N23="SEMESTRAL",J23="MENSUAL"),N17/6+F50,IF(AND(N23="SEMESTRAL",J23="TRIMESTRAL"),N17/2+F50,IF(AND(N23="TRIMESTRAL",J23="MENSUAL"),N17/3,IF(AND(N23="TRIMESTRAL",J23="TRIMESTRAL"),N17,IF(AND(N23="MENSUAL",J23="MENSUAL"),N17,""))))))) ->  | H50: =IF(AND($N$23="ANUAL",$J$23="MENSUAL"),$N$17/12+G50,IF(AND(N23="SEMESTRAL",J23="MENSUAL"),N17/6+G50,IF(AND(N23="TRIMESTRAL",J23="MENSUAL"),N17/3+G50,IF(AND(N23="MENSUAL",J23="MENSUAL"),N17,"")))) ->  | I50: =IF(AND($N$23="ANUAL",$J$23="MENSUAL"),$N$17/12+H50,IF(AND(N23="SEMESTRAL",J23="MENSUAL"),N17/6+H50,IF(AND(N23="TRIMESTRAL",J23="MENSUAL"),N17/3+H50,IF(AND(N23="MENSUAL",J23="MENSUAL"),N17,"")))) ->  | J50: =IF(AND($N$23="ANUAL",$J$23="MENSUAL"),$N$17/12+I50,IF(AND(N23="SEMESTRAL",J23="MENSUAL"),N17/6,IF(AND(N23="TRIMESTRAL",J23="MENSUAL"),N17/3,IF(AND(N23="MENSUAL",J23="MENSUAL"),N17,"")))) ->  | K50: =IF(AND($N$23="ANUAL",$J$23="MENSUAL"),$N$17/12+J50,IF(AND(N23="SEMESTRAL",J23="MENSUAL"),N17/6+J50,IF(AND(N23="TRIMESTRAL",J23="MENSUAL"),N17/3+J50,IF(AND(N23="MENSUAL",J23="MENSUAL"),N17,"")))) ->  | L50: =IF(AND($N$23="ANUAL",$J$23="MENSUAL"),$N$17/12+K50,IF(AND(N23="SEMESTRAL",J23="MENSUAL"),N17/6+K50,IF(AND(N23="TRIMESTRAL",J23="MENSUAL"),N17/3+K50,IF(AND(N23="MENSUAL",J23="MENSUAL"),N17,"")))) ->  | M50: =IF(AND($N$23="ANUAL",$J$23="MENSUAL"),$N$17/12+L50,IF(AND(N23="SEMESTRAL",J23="MENSUAL"),N17/6+L50,IF(AND(N23="TRIMESTRAL",J23="MENSUAL"),N17/3,IF(AND(N23="MENSUAL",J23="MENSUAL"),N17,"")))) ->  | N50: =IF(AND($N$23="ANUAL",$J$23="MENSUAL"),$N$17/12+M50,IF(AND(N23="SEMESTRAL",J23="MENSUAL"),N17/6+M50,IF(AND(N23="TRIMESTRAL",J23="MENSUAL"),N17/3+M50,IF(AND(N23="MENSUAL",J23="MENSUAL"),N17,"")))) ->  | O50: =IF(AND($N$23="ANUAL",$J$23="MENSUAL"),$N$17/12+N50,IF(AND(N23="SEMESTRAL",J23="MENSUAL"),N17/6+N50,IF(AND(N23="TRIMESTRAL",J23="MENSUAL"),N17/3+N50,IF(AND(N23="MENSUAL",J23="MENSUAL"),N17,"")))) -> 
C52: NIVEL DE SEGREGACIÓN *
C53: UNIDAD SEGREGADA (Ej. Facultad, Programa Académico, Área) | G53: RESULTADO | K53: ANALISIS DE DATOS SEGREGADO
C54: Uso y Apropiacion discriminado | G54: =958*1/1131 -> 0.8470380195 | K54: Roles - creacion de usuarios - soportes - capacitaciones- reportes
C55: Servicios Tecnologicos discriminado | G55: =239*1/504 -> 0.4742063492 | K55: Mantenimiento de recursos tecnologicos - conectividad - acompañamiento a eventos- office 360 -365 - gestión de proyectos
C56: Uso y Apropiacion discriminado | G56: 0.87 | K56: Roles - creacion de usuarios - soportes - capacitaciones- reportes
C57: Servicios Tecnologicos discriminado | G57: 0.56 | K57: Mantenimiento de recursos tecnologicos - conectividad - acompañamiento a eventos- office 360 -365 - gestión de proyectos
C62: Diagonal 18 No. 20-29 Fusagasugá – Cundinamarca Teléfono (601) 8281483 Línea Gratuita 018000180414 www.ucundinamarca.edu.co E-mail: info@ucundinamarca.edu.co NIT: 890.680.062-2
C63: Documento controlado por el Sistema de Gestión de la Calidad Asegúrese que corresponde a la última versión consultando el Portal Institucional
G72: Estratégico | J72: Eficacia
G73: Misional | J73: Eficiencia
G74: Apoyo | J74: Acreditación
G75: Seguimiento, Medición, Análisis y Evaluación | J75: Positiva
G76: Direccionamiento Estratégico | J76: Negativa
G77: Planeación Institucional | J77: Por Unidad Regional
G78: Proyectos Especiales y Relaciones Interinstitucionales | J78: Por Facultad
G79: Sistemas Integrados | J79: Por Programa Académico
G80: Autoevaluación y Acreditación | J80: Por área
G81: Comunicaciones | J81: Por Laboratorio
G82: Formación y Aprendizaje | J82: Otros
G83: Ciencia, Tecnología e Innovación | J83: No Aplica
G84: Interacción Social Universitaria
G85: Bienestar Universitario
G86: Admisiones y Registro
G87: Graduados
G88: Dialogando con el Mundo
G89: Talento Humano
G90: Jurídica
G91: Financiera
G92: Sistemas y Tecnología
G93: Bienes y Servicios
G94: Documental
G95: Apoyo Académico
G96: Control Interno
G97: Control Disciplinario
G98: Servicio de Atención al Ciudadano

Sheet ACTUALIZACIONES
C2: MACROPROCESO ESTRATÉGICO | E2: CÓDIGO: ESGr027
C3: PROCESO GESTIÓN SISTEMAS INTEGRADOS - CALIDAD | E3: VERSIÓN: 8
C4: MATRIZ DE MEDICIÓN Y SEGUIMIENTO A LOS PROCESOS DE GESTIÓN | E4: VIGENCIA: 2023-07-28
E5: PÁGINA: 6 de 6
B7: CONTROL DE ACTUALIZACIONES
B8: FECHA | C8: DESCRIPCIÓN DE LA ACTUALIZACIÓN | D8: RESPONSABLE | E8: CARGO
B9: 2020-03-31 | C9: ABS Se agregan dos nuevos indicadores para Acreditación "Mantenimiento a infraestructura de espacios académicos" y "Renovación y actualización de obras con enfoque inclusivo" | D9: Jaime Elder Acosta Ramírez | E9: Coordinador de Calidad
C10: MBU Se agrega un nuevo indicador para Acreditación "Participación de la Comunidad Universitaria"
C11: MIU Se agrega un nuevo indicador para Acreditación "Vinculación efectiva con la comunidad y el sector productivo"
B12: 2022-03-16 | C12: ASI Se suprime el indicador ASI-1 "Sistemas de Información implementados" dado que el mismo ya tiene un cumplimiento satisfactorio por parte del proceso. Se define el indicador INS-5 "Uso y apropiación de los sistemas de información" y el indicador ASI-2 "Ejecución de mantenimientos preventivos a recursos informáticos de custodia de la Dirección de Sistemas y Tecnología" para la vigencia 2022. | D12: Edilson Martínez Clavijo | E12: Director de Sistemas y Tecnología
B13: 2023-06-22 | C13: Se ajusta la meta para el indicador INS5 -Uso y apropiación de los sistemas de información, del 80% al 85% debido a que en la vigencia anterior se supera la meta, por tal motivo es importante generar un ambiente retador para el proceso. Se ajusta el alcance en el indicador ASI-3, donde se realizará la medición en la ejecución de mantenimientos tanto en la sede, como en seccionales y extensiones. Se crea el indicador ASI- 4 (Efectividad del servicio - Mesa de servicios a un clic) para medir la eficiencia en los tiempos de respuesta en los servicios de uso y apropiación (roles - creacion de usuarios - soportes - capacitaciones- reportes) y servicios tecnológicos (mantenimiento de recursos tecnologicos - conectividad - acompañamiento a eventos- office 360 -365 - gestión de proyectos) y satisfacciòn del usuario final con una meta del 75% de solicitudes atendidas en 10 días hábiles. Se realiza ejercicio de planificación de actividades, identificación de recursos, tiempos y responsables en la consecución de los objetivos medidos a través de los indicadores del proceso. | D13: Daniel Andres Rocha Ramirez | E13: Director de Sistemas y Tecnología
B26: Diagonal 18 No. 20-29 Fusagasugá – Cundinamarca Teléfono (601) 8281483 Línea Gratuita 018000180414 www.ucundinamarca.edu.co E-mail: info@ucundinamarca.edu.co NIT: 890.680.062-2
B29: Documento controlado por el Sistema de Gestión de la Calidad Asegúrese que corresponde a la última versión consultando el Portal Institucional

Sheet ITEM (hidden)
A1: MENSUAL | C1: NÚMERO
A2: TRIMESTRAL | C2: PORCENTAJE
A3: SEMESTRAL
A4: ANUAL
